[Event "*** Titled Tuesday Blitz"]
[Site "Chess.com"]
[Date "2020.04.14"]
[Round "7"]
[White "Xeniya2005"]
[Black "DivyaDeshmukh23"]
[Result "1-0"]
[WhiteElo "2218"]
[BlackElo "2465"]
[TimeControl "180+1"]
[EndTime "11:14:50 PDT"]
[Termination "Xeniya2005 won by resignation"]

1. e4 {[%clk 0:03:00.9]} 1... c5 {[%clk 0:02:58.9]} 2. Nf3 {[%clk 0:03:00.6]}
2... d6 {[%clk 0:02:58.8]} 3. d4 {[%clk 0:03:01.1]} 3... cxd4 {[%clk 0:02:59.7]}
4. Nxd4 {[%clk 0:03:01.6]} 4... Nf6 {[%clk 0:02:57.9]} 5. Nc3 {[%clk 0:03:01.3]}
5... a6 {[%clk 0:02:57]} 6. Nb3 {[%clk 0:03:00.9]} 6... e6 {[%clk 0:02:53.3]} 7.
g4 {[%clk 0:03:00.1]} 7... Qc7 {[%clk 0:02:49]} 8. Bg2 {[%clk 0:02:58.2]} 8...
Nc6 {[%clk 0:02:47.2]} 9. g5 {[%clk 0:02:57.5]} 9... Nd7 {[%clk 0:02:44.5]} 10.
f4 {[%clk 0:02:55.4]} 10... Be7 {[%clk 0:02:44.2]} 11. Be3 {[%clk 0:02:53.8]}
11... b5 {[%clk 0:02:42.7]} 12. a3 {[%clk 0:02:46.3]} 12... Bb7 {[%clk
0:02:42.4]} 13. O-O {[%clk 0:02:44.2]} 13... Nc5 {[%clk 0:02:42.1]} 14. Nd2
{[%clk 0:02:32.3]} 14... O-O {[%clk 0:02:36.6]} 15. Qe2 {[%clk 0:02:24]} 15...
b4 {[%clk 0:02:32.4]} 16. axb4 {[%clk 0:02:19.1]} 16... Nxb4 {[%clk 0:02:33.3]}
17. Nc4 {[%clk 0:02:12]} 17... d5 {[%clk 0:02:16.7]} 18. Na5 {[%clk 0:01:45.3]}
18... Nxe4 {[%clk 0:02:05.9]} 19. Nxe4 {[%clk 0:01:37.5]} 19... dxe4 {[%clk
0:02:01.5]} 20. Nxb7 {[%clk 0:01:36.5]} 20... Qxb7 {[%clk 0:02:00.8]} 21. c3
{[%clk 0:01:33.9]} 21... Nd5 {[%clk 0:01:54.8]} 22. Bxe4 {[%clk 0:01:30.9]}
22... Rfb8 {[%clk 0:01:42.5]} 23. Bd4 {[%clk 0:01:03.4]} 23... Qxb2 {[%clk
0:01:11.7]} 24. Qh5 {[%clk 0:00:53.2]} 24... g6 {[%clk 0:00:57.9]} 25. Qh3
{[%clk 0:00:41.1]} 25... Qb5 {[%clk 0:00:48.8]} 26. Rf3 {[%clk 0:00:35]} 26...
h5 {[%clk 0:00:31.7]} 27. gxh6 {[%clk 0:00:25.1]} 27... Kh7 {[%clk 0:00:30.8]}
28. Raf1 {[%clk 0:00:19.4]} 28... Bc5 {[%clk 0:00:30.6]} 29. Kh1 {[%clk
0:00:18]} 29... Bxd4 {[%clk 0:00:30.8]} 30. cxd4 {[%clk 0:00:18.3]} 30... Qc4
{[%clk 0:00:31.2]} 31. f5 {[%clk 0:00:17.3]} 31... exf5 {[%clk 0:00:30.9]} 32.
Bxf5 {[%clk 0:00:17.2]} 32... Ra7 {[%clk 0:00:13.4]} 33. Bd3 {[%clk 0:00:10.4]}
33... Qc7 {[%clk 0:00:07.5]} 34. Qg4 {[%clk 0:00:03.9]} 34... Re8 {[%clk
0:00:03.7]} 35. Rxf7+ {[%clk 0:00:03.5]} 35... Qxf7 {[%clk 0:00:04.6]} 36. Rxf7+
{[%clk 0:00:03.8]} 36... Rxf7 {[%clk 0:00:05.5]} 37. Qxg6+ {[%clk 0:00:04.2]}
37... Kh8 {[%clk 0:00:06.4]} 38. Qxf7 {[%clk 0:00:03.7]} 38... Re1+ {[%clk
0:00:06.3]} 39. Kg2 {[%clk 0:00:03.7]} 39... Nf4+ {[%clk 0:00:06.4]} 40. Qxf4
{[%clk 0:00:02.9]} 40... Re8 {[%clk 0:00:07]} 41. Qf6+ {[%clk 0:00:02.8]} 1-0

[Event "*** Titled Tuesday Blitz"]
[Site "Chess.com"]
[Date "2020.04.14"]
[Round "7"]
[White "Angry_Twin"]
[Black "Muracle"]
[Result "1/2-1/2"]
[WhiteElo "2827"]
[BlackElo "2690"]
[TimeControl "180+1"]
[EndTime "11:14:54 PDT"]
[Termination "Game drawn by repetition"]

1. e4 {[%clk 0:02:57.2]} 1... e5 {[%clk 0:02:58.2]} 2. Nf3 {[%clk 0:02:57.1]}
2... Nc6 {[%clk 0:02:58.1]} 3. Bc4 {[%clk 0:02:57.7]} 3... Nf6 {[%clk
0:02:57.5]} 4. d3 {[%clk 0:02:57.8]} 4... Be7 {[%clk 0:02:53.3]} 5. O-O {[%clk
0:02:56.9]} 5... O-O {[%clk 0:02:53.1]} 6. a4 {[%clk 0:02:56.3]} 6... d5 {[%clk
0:02:51.5]} 7. exd5 {[%clk 0:02:55.9]} 7... Nxd5 {[%clk 0:02:52.4]} 8. Re1
{[%clk 0:02:56.1]} 8... Bf6 {[%clk 0:02:51.8]} 9. Nbd2 {[%clk 0:02:54.6]} 9...
Nd4 {[%clk 0:02:41.1]} 10. c3 {[%clk 0:02:45.4]} 10... Nxf3+ {[%clk 0:02:35.4]}
11. Qxf3 {[%clk 0:02:46.3]} 11... c6 {[%clk 0:02:26.9]} 12. Ne4 {[%clk
0:02:41.2]} 12... Be7 {[%clk 0:02:26.5]} 13. Qg3 {[%clk 0:02:13.1]} 13... f6
{[%clk 0:02:26.2]} 14. f4 {[%clk 0:02:07.1]} 14... exf4 {[%clk 0:02:21.8]} 15.
Bxf4 {[%clk 0:02:07.9]} 15... Kh8 {[%clk 0:02:21.7]} 16. Bd6 {[%clk 0:02:07.9]}
16... Bf5 {[%clk 0:01:53.8]} 17. Bxe7 {[%clk 0:02:03.3]} 17... Qxe7 {[%clk
0:01:46.1]} 18. Nd6 {[%clk 0:01:36.6]} 18... Qd7 {[%clk 0:01:43.1]} 19. Bxd5
{[%clk 0:01:29.3]} 19... cxd5 {[%clk 0:01:42.8]} 20. Nxf5 {[%clk 0:01:29.8]}
20... Qxf5 {[%clk 0:01:42.7]} 21. Re7 {[%clk 0:01:30.4]} 21... Rg8 {[%clk
0:01:35.1]} 22. Rxb7 {[%clk 0:01:29.7]} 22... Rae8 {[%clk 0:01:31.9]} 23. Rf1
{[%clk 0:01:21.5]} 23... Qc8 {[%clk 0:01:20.7]} 24. Qc7 {[%clk 0:00:59.8]} 24...
Qg4 {[%clk 0:01:11.7]} 25. Rxa7 {[%clk 0:00:52.1]} 25... Qe2 {[%clk 0:00:43.6]}
26. Qb6 {[%clk 0:00:26.3]} 26... Qxd3 {[%clk 0:00:34.9]} 27. h3 {[%clk
0:00:26.4]} 27... Re2 {[%clk 0:00:28.3]} 28. Rb7 {[%clk 0:00:19.9]} 28... Qe4
{[%clk 0:00:23.4]} 29. Rf2 {[%clk 0:00:19.4]} 29... Re1+ {[%clk 0:00:23.4]} 30.
Rf1 {[%clk 0:00:19.8]} 30... Re2 {[%clk 0:00:22.6]} 31. Rf2 {[%clk 0:00:18]}
31... Re1+ {[%clk 0:00:16.9]} 32. Kh2 {[%clk 0:00:18]} 32... Qe5+ {[%clk
0:00:16.9]} 33. g3 {[%clk 0:00:18.4]} 33... Qe4 {[%clk 0:00:14.5]} 34. Rg2
{[%clk 0:00:18.7]} 34... h5 {[%clk 0:00:13.3]} 35. Qf2 {[%clk 0:00:16.2]} 35...
d4 {[%clk 0:00:12.1]} 36. Rb4 {[%clk 0:00:16.4]} 36... Rd8 {[%clk 0:00:08.6]}
37. Rxd4 {[%clk 0:00:16.3]} 37... Rxd4 {[%clk 0:00:08.5]} 38. cxd4 {[%clk
0:00:15.5]} 38... Rb1 {[%clk 0:00:05.8]} 39. h4 {[%clk 0:00:13.5]} 39... Rc1
{[%clk 0:00:05.1]} 40. a5 {[%clk 0:00:12.3]} 40... Ra1 {[%clk 0:00:03.8]} 41.
Qd2 {[%clk 0:00:11.6]} 41... Qd5 {[%clk 0:00:03.6]} 42. b4 {[%clk 0:00:09.5]}
42... Qe4 {[%clk 0:00:03.7]} 43. Qe2 {[%clk 0:00:10]} 43... Qb1 {[%clk
0:00:03.5]} 44. Qxh5+ {[%clk 0:00:09.9]} 44... Kg8 {[%clk 0:00:03.3]} 45. Qe8+
{[%clk 0:00:10.8]} 45... Kh7 {[%clk 0:00:03.6]} 46. Qh5+ {[%clk 0:00:11.3]}
46... Kg8 {[%clk 0:00:04]} 47. Qd5+ {[%clk 0:00:10.6]} 47... Kh8 {[%clk
0:00:03.5]} 48. Qh5+ {[%clk 0:00:07.3]} 48... Kg8 {[%clk 0:00:03.4]} 1/2-1/2

[Event "*** Titled Tuesday Blitz"]
[Site "Chess.com"]
[Date "2020.04.14"]
[Round "7"]
[White "tigra"]
[Black "Indianlad"]
[Result "1-0"]
[WhiteElo "2859"]
[BlackElo "2964"]
[TimeControl "180+1"]
[EndTime "11:14:55 PDT"]
[Termination "tigra won by resignation"]

1. e4 {[%clk 0:03:00.9]} 1... c6 {[%clk 0:02:58.6]} 2. d4 {[%clk 0:03:00.1]}
2... d5 {[%clk 0:02:59.2]} 3. e5 {[%clk 0:03:00.4]} 3... Bf5 {[%clk 0:02:58.9]}
4. c4 {[%clk 0:02:58.9]} 4... e6 {[%clk 0:02:58.9]} 5. Nc3 {[%clk 0:02:59.6]}
5... Ne7 {[%clk 0:02:59.1]} 6. Nge2 {[%clk 0:02:58.9]} 6... dxc4 {[%clk
0:02:50.3]} 7. Ng3 {[%clk 0:02:58.8]} 7... Nd7 {[%clk 0:02:47.8]} 8. Bxc4 {[%clk
0:02:55.8]} 8... Nb6 {[%clk 0:02:47.7]} 9. Bb3 {[%clk 0:02:55.2]} 9... Bg6
{[%clk 0:02:47.5]} 10. a4 {[%clk 0:02:49.8]} 10... a5 {[%clk 0:02:46.8]} 11. O-O
{[%clk 0:02:23.7]} 11... Ned5 {[%clk 0:02:42.4]} 12. Nce4 {[%clk 0:02:23.4]}
12... h5 {[%clk 0:02:25]} 13. Bg5 {[%clk 0:02:04]} 13... Be7 {[%clk 0:02:25]}
14. Nd6+ {[%clk 0:02:03.6]} 14... Kf8 {[%clk 0:02:25.3]} 15. Nxb7 {[%clk
0:02:02.1]} 15... Qc7 {[%clk 0:02:25.4]} 16. Bxe7+ {[%clk 0:02:01.9]} 16... Qxe7
{[%clk 0:02:26.3]} 17. Nd6 {[%clk 0:01:51.6]} 17... h4 {[%clk 0:02:26]} 18. Nge4
{[%clk 0:01:47.6]} 18... Rd8 {[%clk 0:02:08.9]} 19. Rc1 {[%clk 0:01:37.5]} 19...
Nb4 {[%clk 0:02:09.3]} 20. Rc5 {[%clk 0:01:16.7]} 20... Qa7 {[%clk 0:02:08.3]}
21. Qf3 {[%clk 0:01:00.7]} 21... Kg8 {[%clk 0:02:04.2]} 22. Ng5 {[%clk
0:00:52.9]} 22... Rh5 {[%clk 0:01:41.1]} 23. Ndxf7 {[%clk 0:00:40.3]} 23... Bxf7
{[%clk 0:01:39.8]} 24. Rxa5 {[%clk 0:00:37.4]} 24... Qe7 {[%clk 0:01:35.7]} 25.
Nxf7 {[%clk 0:00:35.5]} 25... Qxf7 {[%clk 0:01:35.8]} 26. Bxe6 {[%clk
0:00:30.2]} 26... Qxe6 {[%clk 0:01:36.7]} 27. Qxh5 {[%clk 0:00:30.6]} 27... Rxd4
{[%clk 0:01:26.5]} 28. Ra7 {[%clk 0:00:28]} 28... Rd7 {[%clk 0:01:26.9]} 29.
Rxd7 {[%clk 0:00:26.5]} 29... Nxd7 {[%clk 0:01:27.5]} 30. Rd1 {[%clk 0:00:22.3]}
30... Nd5 {[%clk 0:01:14.8]} 31. Qxh4 {[%clk 0:00:22.3]} 31... Nxe5 {[%clk
0:01:13.1]} 32. Qe4 {[%clk 0:00:22.5]} 32... Nf6 {[%clk 0:01:09.6]} 33. Qe2
{[%clk 0:00:22.6]} 33... g5 {[%clk 0:00:58.5]} 34. a5 {[%clk 0:00:22.6]} 34...
g4 {[%clk 0:00:59.2]} 35. Re1 {[%clk 0:00:20.7]} 35... Nfd7 {[%clk 0:00:58.6]}
36. a6 {[%clk 0:00:21]} 36... Qa2 {[%clk 0:00:59.3]} 37. Rd1 {[%clk 0:00:20.2]}
37... Qa4 {[%clk 0:00:54.9]} 38. b3 {[%clk 0:00:19.8]} 38... Qa3 {[%clk
0:00:48.6]} 39. h3 {[%clk 0:00:19.3]} 39... gxh3 {[%clk 0:00:48.6]} 40. Rxd7
{[%clk 0:00:19.1]} 40... Nxd7 {[%clk 0:00:33.4]} 41. Qe6+ {[%clk 0:00:19.2]}
41... Kf8 {[%clk 0:00:31.5]} 42. Qxd7 {[%clk 0:00:19.4]} 42... Qa1+ {[%clk
0:00:21.5]} 43. Kh2 {[%clk 0:00:19.3]} 43... hxg2 {[%clk 0:00:22.4]} 44. Qd6+
{[%clk 0:00:18.4]} 44... Kf7 {[%clk 0:00:22.7]} 45. Qc7+ {[%clk 0:00:18.3]}
45... Kf8 {[%clk 0:00:18.2]} 46. Qc8+ {[%clk 0:00:18.4]} 46... Kf7 {[%clk
0:00:18.7]} 47. Kxg2 {[%clk 0:00:18.8]} 47... Qg7+ {[%clk 0:00:17.6]} 48. Kf3
{[%clk 0:00:19.2]} 48... Qc3+ {[%clk 0:00:17.7]} 49. Ke4 {[%clk 0:00:18.4]}
49... Qb4+ {[%clk 0:00:17.9]} 50. Kf5 {[%clk 0:00:17.6]} 50... Qc5+ {[%clk
0:00:17.9]} 51. Kg4 {[%clk 0:00:18]} 51... Qd4+ {[%clk 0:00:18.3]} 52. f4 {[%clk
0:00:18.2]} 52... Qg1+ {[%clk 0:00:18.2]} 53. Kh5 {[%clk 0:00:18.6]} 53... Qh2+
{[%clk 0:00:16.7]} 54. Kg5 {[%clk 0:00:18.6]} 54... Qg1+ {[%clk 0:00:11.9]} 55.
Qg4 {[%clk 0:00:18.9]} 55... Qb6 {[%clk 0:00:12.1]} 56. Qd7+ {[%clk 0:00:18.7]}
56... Kf8 {[%clk 0:00:12.2]} 57. Qc8+ {[%clk 0:00:19]} 1-0

[Event "*** Titled Tuesday Blitz"]
[Site "Chess.com"]
[Date "2020.04.14"]
[Round "7"]
[White "Nikolakis2014"]
[Black "LastHeroJr"]
[Result "1-0"]
[WhiteElo "2696"]
[BlackElo "2547"]
[TimeControl "180+1"]
[EndTime "11:14:55 PDT"]
[Termination "Nikolakis2014 won on time"]

1. Nf3 {[%clk 0:03:00.9]} 1... Nf6 {[%clk 0:02:57.9]} 2. c4 {[%clk 0:03:01]}
2... g6 {[%clk 0:02:57.4]} 3. Nc3 {[%clk 0:03:00.7]} 3... Bg7 {[%clk 0:02:57.4]}
4. e4 {[%clk 0:03:00.6]} 4... d6 {[%clk 0:02:57.6]} 5. d4 {[%clk 0:03:00.7]}
5... O-O {[%clk 0:02:57.6]} 6. Be2 {[%clk 0:03:00.8]} 6... e5 {[%clk 0:02:57.6]}
7. Be3 {[%clk 0:03:01]} 7... Ng4 {[%clk 0:02:56.2]} 8. Bg5 {[%clk 0:03:00.5]}
8... f6 {[%clk 0:02:56.6]} 9. Bh4 {[%clk 0:03:00.7]} 9... g5 {[%clk 0:02:57.1]}
10. Bg3 {[%clk 0:03:00.5]} 10... Nh6 {[%clk 0:02:57.1]} 11. O-O {[%clk
0:03:00.4]} 11... Nc6 {[%clk 0:02:54.5]} 12. dxe5 {[%clk 0:02:58.8]} 12... fxe5
{[%clk 0:02:50]} 13. Nd5 {[%clk 0:02:56.8]} 13... g4 {[%clk 0:02:40.1]} 14. Nh4
{[%clk 0:02:49.5]} 14... Nd4 {[%clk 0:02:38.2]} 15. f3 {[%clk 0:02:47.3]} 15...
c6 {[%clk 0:02:33]} 16. Ne3 {[%clk 0:02:46.5]} 16... Bf6 {[%clk 0:02:05.5]} 17.
Nhf5 {[%clk 0:02:42.1]} 17... Nhxf5 {[%clk 0:02:01.6]} 18. exf5 {[%clk
0:02:24.6]} 18... gxf3 {[%clk 0:01:55.5]} 19. Bxf3 {[%clk 0:02:22.4]} 19... Qb6
{[%clk 0:01:41.7]} 20. Kh1 {[%clk 0:02:20.3]} 20... Bxf5 {[%clk 0:01:11.4]} 21.
Nxf5 {[%clk 0:02:18.2]} 21... Nxf5 {[%clk 0:01:12.3]} 22. Bd5+ {[%clk
0:02:15.8]} 22... cxd5 {[%clk 0:01:12.6]} 23. Qxd5+ {[%clk 0:02:15.2]} 23... Kh8
{[%clk 0:01:12.7]} 24. Rxf5 {[%clk 0:02:14.9]} 24... Qxb2 {[%clk 0:01:11.6]} 25.
Raf1 {[%clk 0:02:12.6]} 25... Bg7 {[%clk 0:01:10.6]} 26. Rxf8+ {[%clk
0:01:47.4]} 26... Rxf8 {[%clk 0:01:11.5]} 27. Rxf8+ {[%clk 0:01:47.2]} 27...
Bxf8 {[%clk 0:01:12.4]} 28. h3 {[%clk 0:01:47.5]} 28... Kg7 {[%clk 0:00:50.8]}
29. Kh2 {[%clk 0:01:43.9]} 29... Qb6 {[%clk 0:00:33.1]} 30. Qe6 {[%clk
0:01:31.1]} 30... Qc7 {[%clk 0:00:30.5]} 31. Qg4+ {[%clk 0:01:30.1]} 31... Kh8
{[%clk 0:00:29.5]} 32. Qe6 {[%clk 0:01:28.7]} 32... Qe7 {[%clk 0:00:27.1]} 33.
Qf5 {[%clk 0:01:20.9]} 33... b6 {[%clk 0:00:24.8]} 34. Qe4 {[%clk 0:01:19.3]}
34... Qf7 {[%clk 0:00:21.1]} 35. a4 {[%clk 0:01:17.6]} 35... h6 {[%clk
0:00:16.4]} 36. Qc6 {[%clk 0:01:09]} 36... Kg7 {[%clk 0:00:12.4]} 37. Qe4 {[%clk
0:01:08.6]} 37... Qe6 {[%clk 0:00:12.2]} 38. Qb7+ {[%clk 0:01:08.1]} 38... Qf7
{[%clk 0:00:12.3]} 39. Qe4 {[%clk 0:01:08.1]} 39... Qc7 {[%clk 0:00:11.1]} 40.
Qg4+ {[%clk 0:01:07.1]} 40... Kh8 {[%clk 0:00:11.4]} 41. Qe6 {[%clk 0:01:06.8]}
41... Qe7 {[%clk 0:00:11.6]} 42. Qg6 {[%clk 0:01:01.6]} 42... Qg7 {[%clk
0:00:10]} 43. Qf5 {[%clk 0:00:59.6]} 43... Qe7 {[%clk 0:00:09.1]} 44. Bf2 {[%clk
0:00:58.5]} 44... Bg7 {[%clk 0:00:08.9]} 45. Be3 {[%clk 0:00:58.5]} 45... Qf8
{[%clk 0:00:08.7]} 46. Qe6 {[%clk 0:00:57.5]} 46... Qf6 {[%clk 0:00:06.8]} 47.
Qc8+ {[%clk 0:00:55.3]} 47... Qf8 {[%clk 0:00:06.3]} 48. Qd7 {[%clk 0:00:53]}
48... Qa8 {[%clk 0:00:03.4]} 49. Qxd6 {[%clk 0:00:51.1]} 49... Qe4 {[%clk
0:00:02.8]} 50. Bxh6 {[%clk 0:00:50]} 50... Bxh6 {[%clk 0:00:02.9]} 51. Qxh6+
{[%clk 0:00:49.9]} 51... Kg8 {[%clk 0:00:03.8]} 52. Qg5+ {[%clk 0:00:50]} 52...
Kf8 {[%clk 0:00:04]} 53. Qd8+ {[%clk 0:00:44.5]} 53... Kf7 {[%clk 0:00:03.8]}
54. Qd7+ {[%clk 0:00:42.9]} 54... Kf6 {[%clk 0:00:04]} 55. Qd6+ {[%clk
0:00:42.2]} 55... Kf7 {[%clk 0:00:03.7]} 56. Qc7+ {[%clk 0:00:34.2]} 56... Kf6
{[%clk 0:00:03.5]} 57. Qd8+ {[%clk 0:00:34]} 57... Kg7 {[%clk 0:00:03.3]} 58.
Qg5+ {[%clk 0:00:33.7]} 58... Kf7 {[%clk 0:00:03.1]} 59. h4 {[%clk 0:00:34]}
59... Qxc4 {[%clk 0:00:01.2]} 60. Qf5+ {[%clk 0:00:34]} 1-0

[Event "*** Titled Tuesday Blitz"]
[Site "Chess.com"]
[Date "2020.04.14"]
[Round "7"]
[White "giantslayer83"]
[Black "YQPerez"]
[Result "0-1"]
[WhiteElo "2722"]
[BlackElo "2973"]
[TimeControl "180+1"]
[EndTime "11:14:57 PDT"]
[Termination "YQPerez won on time"]

1. d4 {[%clk 0:03:00.9]} 1... d5 {[%clk 0:02:58.6]} 2. c4 {[%clk 0:03:00.2]}
2... e6 {[%clk 0:02:59.1]} 3. Nc3 {[%clk 0:02:59.8]} 3... Nf6 {[%clk 0:02:58.9]}
4. cxd5 {[%clk 0:02:59.4]} 4... exd5 {[%clk 0:02:59.3]} 5. Bg5 {[%clk
0:02:59.3]} 5... c6 {[%clk 0:02:59.1]} 6. e3 {[%clk 0:02:59.8]} 6... Bd6 {[%clk
0:02:58.6]} 7. Bd3 {[%clk 0:02:58.9]} 7... Nbd7 {[%clk 0:02:58.3]} 8. Qc2 {[%clk
0:02:53.3]} 8... Nf8 {[%clk 0:02:58.4]} 9. Nf3 {[%clk 0:02:33.1]} 9... Ng6
{[%clk 0:02:58.5]} 10. O-O-O {[%clk 0:02:24]} 10... h6 {[%clk 0:02:56.8]} 11. h4
{[%clk 0:01:59.3]} 11... hxg5 {[%clk 0:02:17.2]} 12. hxg5 {[%clk 0:02:00.2]}
12... Rxh1 {[%clk 0:02:16.1]} 13. Rxh1 {[%clk 0:01:59.6]} 13... Ne4 {[%clk
0:02:14.9]} 14. Nxe4 {[%clk 0:01:58.6]} 14... dxe4 {[%clk 0:02:15.2]} 15. Bxe4
{[%clk 0:01:59.5]} 15... Nf8 {[%clk 0:02:12.3]} 16. g6 {[%clk 0:01:42.8]} 16...
f6 {[%clk 0:02:06.8]} 17. d5 {[%clk 0:01:42.1]} 17... c5 {[%clk 0:02:04.8]} 18.
Nh4 {[%clk 0:01:32.3]} 18... Qe7 {[%clk 0:01:50.6]} 19. Bf5 {[%clk 0:01:21.6]}
19... Bd7 {[%clk 0:01:16.6]} 20. Bxd7+ {[%clk 0:01:19.7]} 20... Qxd7 {[%clk
0:01:16.6]} 21. Nf5 {[%clk 0:01:18.7]} 21... O-O-O {[%clk 0:01:14.8]} 22. f4
{[%clk 0:01:05.8]} 22... Kb8 {[%clk 0:01:11.4]} 23. Kb1 {[%clk 0:01:01.4]} 23...
Rc8 {[%clk 0:01:00.7]} 24. Rh8 {[%clk 0:00:55.2]} 24... c4 {[%clk 0:00:56.2]}
25. Rg8 {[%clk 0:00:54.5]} 25... Bb4 {[%clk 0:00:29]} 26. e4 {[%clk 0:00:21.8]}
26... c3 {[%clk 0:00:28.1]} 27. a3 {[%clk 0:00:14.6]} 27... Ba5 {[%clk
0:00:24.1]} 28. Rxg7 {[%clk 0:00:13.3]} 28... Qd8 {[%clk 0:00:18.1]} 29. b4
{[%clk 0:00:13]} 29... Bxb4 {[%clk 0:00:16.1]} 30. axb4 {[%clk 0:00:13]} 30...
Qb6 {[%clk 0:00:16.8]} 31. Ka2 {[%clk 0:00:05.9]} 31... Qa6+ {[%clk 0:00:15.4]}
32. Kb3 {[%clk 0:00:05.5]} 32... Qc4+ {[%clk 0:00:13.5]} 33. Ka3 {[%clk
0:00:05.8]} 33... Qa6+ {[%clk 0:00:11]} 34. Kb3 {[%clk 0:00:06.3]} 34... b5
{[%clk 0:00:06.8]} 35. Qa2 {[%clk 0:00:01.9]} 35... Qxa2+ {[%clk 0:00:06.2]} 36.
Kxa2 {[%clk 0:00:02.8]} 36... c2 {[%clk 0:00:06.8]} 37. Nd6 {[%clk 0:00:01.7]}
37... c1=Q {[%clk 0:00:07.2]} 38. Rb7+ {[%clk 0:00:01.8]} 38... Ka8 {[%clk
0:00:07.6]} 39. Nxc8 {[%clk 0:00:01.8]} 39... Kxb7 {[%clk 0:00:08]} 40. g7
{[%clk 0:00:01.9]} 40... Qc2+ {[%clk 0:00:07.5]} 41. Ka3 {[%clk 0:00:01.4]}
41... Qc3+ {[%clk 0:00:05.8]} 42. Ka2 {[%clk 0:00:01.6]} 42... Qc4+ {[%clk
0:00:05]} 43. Ka3 {[%clk 0:00:01.6]} 43... Qd3+ {[%clk 0:00:05.4]} 44. Ka2
{[%clk 0:00:01.8]} 44... Qe2+ {[%clk 0:00:04.5]} 45. Ka3 {[%clk 0:00:02.2]}
45... Qe3+ {[%clk 0:00:02.8]} 46. Ka2 {[%clk 0:00:02.4]} 46... Qd2+ {[%clk
0:00:02.7]} 47. Ka3 {[%clk 0:00:02.6]} 47... Qc1+ {[%clk 0:00:03]} 48. Ka2
{[%clk 0:00:02.7]} 48... Qxc8 {[%clk 0:00:03.8]} 49. g8=Q {[%clk 0:00:02.4]}
49... Nd7 {[%clk 0:00:04.3]} 0-1

[Event "*** Titled Tuesday Blitz"]
[Site "Chess.com"]
[Date "2020.04.14"]
[Round "7"]
[White "Khamrakulov_Djurabek"]
[Black "AvitalBor"]
[Result "0-1"]
[WhiteElo "2894"]
[BlackElo "2758"]
[TimeControl "180+1"]
[EndTime "11:15:01 PDT"]
[Termination "AvitalBor won on time"]

1. e4 {[%clk 0:03:00.9]} 1... e5 {[%clk 0:02:59]} 2. Nf3 {[%clk 0:03:00.6]} 2...
Nc6 {[%clk 0:02:59.6]} 3. d4 {[%clk 0:03:01]} 3... exd4 {[%clk 0:02:59.2]} 4.
Nxd4 {[%clk 0:03:01.3]} 4... Nf6 {[%clk 0:02:59.7]} 5. Nc3 {[%clk 0:03:00.5]}
5... g6 {[%clk 0:02:39.9]} 6. g3 {[%clk 0:02:39.7]} 6... Bg7 {[%clk 0:02:38.6]}
7. Nxc6 {[%clk 0:02:35.5]} 7... bxc6 {[%clk 0:02:35.9]} 8. Bg2 {[%clk
0:02:34.2]} 8... O-O {[%clk 0:02:35.8]} 9. O-O {[%clk 0:02:33.8]} 9... Rb8
{[%clk 0:02:34.7]} 10. e5 {[%clk 0:02:29.1]} 10... Nd5 {[%clk 0:02:33.2]} 11.
Nxd5 {[%clk 0:02:20.9]} 11... cxd5 {[%clk 0:02:31.8]} 12. Qxd5 {[%clk
0:02:17.5]} 12... Bb7 {[%clk 0:02:31.5]} 13. Qa5 {[%clk 0:02:15.3]} 13... Bxg2
{[%clk 0:02:23.2]} 14. Kxg2 {[%clk 0:02:16.2]} 14... Re8 {[%clk 0:02:22.2]} 15.
Re1 {[%clk 0:02:10.7]} 15... Rb6 {[%clk 0:01:52.9]} 16. b3 {[%clk 0:01:51.2]}
16... Qa8+ {[%clk 0:01:43.5]} 17. f3 {[%clk 0:01:50.9]} 17... Rbe6 {[%clk
0:01:12.2]} 18. Bb2 {[%clk 0:01:45.5]} 18... d6 {[%clk 0:01:12.5]} 19. c4 {[%clk
0:01:39.1]} 19... Bxe5 {[%clk 0:01:10.3]} 20. Bxe5 {[%clk 0:01:27.9]} 20... Rxe5
{[%clk 0:01:11.2]} 21. Qd2 {[%clk 0:01:23.1]} 21... a5 {[%clk 0:01:06.2]} 22.
Rxe5 {[%clk 0:01:19.1]} 22... Rxe5 {[%clk 0:01:06]} 23. Re1 {[%clk 0:01:19]}
23... Rxe1 {[%clk 0:01:04.2]} 24. Qxe1 {[%clk 0:01:19.9]} 24... a4 {[%clk
0:01:04.8]} 25. b4 {[%clk 0:01:00.3]} 25... a3 {[%clk 0:00:53]} 26. b5 {[%clk
0:00:52.4]} 26... Qa4 {[%clk 0:00:44.7]} 27. Qc3 {[%clk 0:00:38.7]} 27... h5
{[%clk 0:00:44.2]} 28. Kf2 {[%clk 0:00:32.2]} 28... Qa7+ {[%clk 0:00:43.4]} 29.
Kf1 {[%clk 0:00:29.9]} 29... Qc5 {[%clk 0:00:42.3]} 30. Qd3 {[%clk 0:00:19.4]}
30... Qb4 {[%clk 0:00:40.2]} 31. Ke2 {[%clk 0:00:19.7]} 31... Qb2+ {[%clk
0:00:36.3]} 32. Qd2 {[%clk 0:00:20.1]} 32... Qb1 {[%clk 0:00:22.6]} 33. Ke3
{[%clk 0:00:16.2]} 33... Qb2 {[%clk 0:00:15.2]} 34. Kd3 {[%clk 0:00:16.1]} 34...
Qe5 {[%clk 0:00:12.8]} 35. Qc3 {[%clk 0:00:13.1]} 35... Qf5+ {[%clk 0:00:12.5]}
36. Kd2 {[%clk 0:00:12]} 36... Qc5 {[%clk 0:00:12.8]} 37. Ke2 {[%clk 0:00:10.9]}
37... d5 {[%clk 0:00:12.7]} 38. Kd3 {[%clk 0:00:09.7]} 38... Qf2 {[%clk
0:00:09.3]} 39. cxd5 {[%clk 0:00:06.1]} 39... Qxa2 {[%clk 0:00:09.3]} 40. Qxc7
{[%clk 0:00:03.4]} 40... Qxd5+ {[%clk 0:00:09.2]} 41. Kc3 {[%clk 0:00:03.5]}
41... Qxb5 {[%clk 0:00:07.5]} 42. Qd8+ {[%clk 0:00:03.3]} 42... Kh7 {[%clk
0:00:07.7]} 43. Qe7 {[%clk 0:00:03.6]} 43... Qc6+ {[%clk 0:00:06.6]} 44. Kd2
{[%clk 0:00:02]} 44... Qxf3 {[%clk 0:00:06.8]} 45. h4 {[%clk 0:00:01.5]} 45...
a2 {[%clk 0:00:06.7]} 46. Qa7 {[%clk 0:00:01.9]} 46... Qg2+ {[%clk 0:00:05.2]}
47. Kd3 {[%clk 0:00:01.2]} 47... Qxg3+ {[%clk 0:00:05.4]} 48. Ke4 {[%clk
0:00:01.9]} 48... Qg2+ {[%clk 0:00:05.2]} 49. Ke5 {[%clk 0:00:02.3]} 49... Kg8
{[%clk 0:00:05.4]} 50. Kf6 {[%clk 0:00:01.4]} 50... Qf1+ {[%clk 0:00:04.9]} 51.
Ke7 {[%clk 0:00:01.7]} 51... a1=Q {[%clk 0:00:04.9]} 52. Qb8+ {[%clk 0:00:02.2]}
52... Kh7 {[%clk 0:00:05.3]} 0-1